Cogmind - Beta 15 @@@ ROGUE MODE // 2025.10.15 @ 13:06:22 Player: ALICE_MARGADROID_V-02 Result: Self-destructed Performance ------------- Evolutions (1) 500 Regions Visited (3) 600 Robots Destroyed (37) 185 Value Destroyed (662) 662 Prototype IDs (3) 60 Alien Tech Used (0) 0 Bonus (0) 0 TOTAL SCORE: 2007 Bonus ------- None Cogmind --------- Core Integrity 376/400 Matter 272/300 Energy 250/250 System Corruption 0% Temperature Cool (0) Movement Treading (160) Location -9/Materials Parts ------- > --- POWER (1) -------- Ion Engine > --- PROPULSION (3) --- Light Treads Light Treads Light Treads > --- UTILITY (3) ------ High-capacity Storage Unit Structural Scanner Seismic Detector > --- WEAPON (2) ------- Advanced Beam Cannon Improved Assault Rifle > --- INVENTORY (20) --- Improved Ion Engine Light Treads Light Treads Compact Wheel Seismic Detector Weapon Shielding Weapon Shielding Decoy Drone Bay (16/16) Medium Laser Medium Laser Medium Laser Medium Laser Medium Laser Ion Cannon Ion Cannon Ion Cannon Battle Cannon Rocket Launcher Mini Grenade Launcher Peak State ------------ > --- POWER ------------ Light Ion Engine > --- PROPULSION ------- Light Treads Light Treads Light Treads > --- UTILITY ---------- High-capacity Storage Unit Decoy Drone Bay > --- WEAPON ----------- Medium Laser Light Cannon > --- INVENTORY -------- Ion Engine Aluminum Leg Compact Wheel Structural Scanner Seismic Detector Seismic Detector Transport Network Coupler Weapon Shielding Weapon Shielding Medium Laser Medium Laser Medium Laser Medium Laser Medium Laser Battle Cannon Grenade Launcher Rocket Launcher Mining Laser [Rating: 23] Favorites ----------- Power Light Ion Engine Engine Light Ion Engine Propulsion Light Treads Treads Light Treads Leg Aluminum Leg Utility Seismic Detector Device Seismic Detector Storage High-capacity Storage Unit Weapon Medium Laser Energy Gun Medium Laser Energy Cannon Advanced Beam Cannon Ballistic Gun Assault Rifle Ballistic Cannon Light Cannon Launcher Grenade Launcher Build | -11 -10 -10 -9 ------- Run | Yrd Mat Min Mat Slots Evolved 2 | . . . 2 Power . | . . . . Propulsion 1 | . . . 1 Utility 1 | . . . 1 Weapon . | . . . . Parts Attached 25 | 8 7 2 8 Power 3 | 1 . 1 1 Engine 3 | 1 . 1 1 Core . | . . . . Reactor . | . . . . Propulsion 7 | 2 2 . 3 Treads 5 | . 2 . 3 Leg 2 | 2 . . . Wheel . | . . . . Hover . | . . . . Flight . | . . . . Utility 6 | 3 1 . 2 Device 4 | 2 . . 2 Storage 2 | 1 1 . . Processor . | . . . . Hackware . | . . . . Protection . | . . . . Artifact . | . . . . Weapon 9 | 2 4 1 2 Energy Gun 2 | . 2 . . Energy Cannon 1 | . . . 1 Ballistic Gun 3 | 2 . . 1 Ballistic Cannon 2 | . 1 1 . Launcher 1 | . 1 . . Special Weapon . | . . . . Impact Weapon . | . . . . Slashing Weapon . | . . . . Piercing Weapon . | . . . . Special Melee Weapon . | . . . . Unidentified Prototypes 3 | . . . 3 Parts Lost 3 | . 1 . 2 Power 1 | . . . 1 Propulsion 1 | . . . 1 Utility . | . . . . Weapon 1 | . 1 . . Highest Loss Streak 2 | . 1 . 2 To Critical Strikes . | . . . . Average Backups 14 | 5 11 19 18 Power 1 | . 1 1 1 Propulsion 2 | 3 2 3 2 Utility 4 | . 2 6 4 Weapon 6 | . 4 7 10 Tool/Special . | . . . . Unused Backups 29 | . 3 5 21 Power 2 | . . 1 1 Propulsion 9 | . 3 2 4 Utility 6 | . . 2 4 Weapon 12 | . . . 12 Tool/Special . | . . . . Average Slot Usage (%) 99 | . 99 100 97 Engine 13 | . 14 14 10 Treads 28 | . 26 28 31 Device 15 | . 14 14 21 Storage 13 | . 14 14 11 Energy Gun 13 | . 16 14 5 Ballistic Gun 3 | . 7 . 5 Ballistic Cannon 4 | . 1 6 5 Launcher 3 | . 2 7 . Peak Build Rating 23 | 9 8 10 23 Average Rating 8 | 6 7 8 14 On Entrance 6 | . 7 8 10 Naked Turns . | . . . . Heaviest Build 54 | 13 49 49 54 Greatest Support 60 | 20 40 40 60 Greatest Overweight (x) 1 | . 1 1 1 Average Overweight (x) . | . . 1 . Largest Inventory Capacity 20 | 8 20 20 20 Average Capacity 16 | 7 14 20 20 Most Carried 20 | 8 19 20 20 Average Carried 14 | 5 11 19 19 Final Capacity 20 | 8 20 20 20 Final Carried 20 | 8 19 20 20 Class Distribution -------------------- 100% | Mutant Dominant Class ---------------- Mutant | -10/Materials Mutant | -10/Mines Mutant | -9/Materials Resources | -11 -10 -10 -9 ----------- Run | Yrd Mat Min Mat Matter Collected 844 | 328 144 210 162 Remotely . | . . . . Salvage Created 1033 | 154 506 188 185 Parts 69 | 13 28 8 20 Haulers Intercepted 1 | . 1 . . Recyclers Shooed . | . . . . Parts Field Recycled . | . . . . Retrieved Matter . | . . . . Parts Self-Destructed . | . . . . Prevented . | . . . . Kills | -11 -10 -10 -9 ------- Run | Yrd Mat Min Mat Combat Hostiles Destroyed 20 | . 13 2 5 Guns 9 | . 8 . 1 Cannons 2 | . . . 2 AOE 9 | . 5 2 2 Classes Destroyed 10 | 2 6 . 2 Worker 2 | . 2 . . Builder 2 | . 1 1 . Tunneler 4 | 4 . . . Hauler 1 | . 1 . . Recycler 4 | 1 1 1 1 Operator 1 | . . . 1 Watcher 3 | . 1 . 2 Swarmer 9 | . 6 . 3 Grunt 9 | . 7 2 . Sentry 2 | . . . 2 Best Kill Streak 9 | 3 9 2 3 Combat Bots Only 5 | . 5 2 3 Max Kills in Single Turn 2 | 1 2 1 1 Gunslinging . | . . . . Exploded 2 | . 2 1 1 Melee . | . . . . Uniques/NPCs Destroyed . | . . . . Combat | -11 -10 -10 -9 -------- Run | Yrd Mat Min Mat Hostile Shots Fired 77 | . 46 6 25 Missed 24 | . 14 2 8 Hits 53 | . 32 4 17 Projectile 53 | . 32 4 17 Critical Strikes 1 | . . . 1 Damage Taken 710 | . 390 74 246 Core 106 | . 64 18 24 Absorbed by Shields . | . . . . Core Remaining (%) 83 | 100 . 67 . Volleys Fired 81 | 8 39 14 20 Largest 2 | 2 2 1 2 Hottest 100 | 40 100 50 91 Shots Fired 135 | 16 67 14 38 Gun 97 | 16 57 6 18 Cannon 19 | . 1 . 18 Launcher 19 | . 9 8 2 Special . | . . . . Kinetic 63 | 16 29 . 18 Thermal 53 | . 29 6 18 Explosive 19 | . 9 8 2 Electromagnetic . | . . . . Robot Hit Streak 7 | 2 5 4 7 Robot Miss Streak 3 | 1 3 2 3 Penetration Max . | . . . . Secondary Targets . | . . . . Shots Hit Robots 72 | 8 36 4 24 Core Hits 54 | 5 29 8 12 Critical Kills . | . . . . Critical Parts Destroyed . | . . . . Critical Strikes 1 | . . . 1 Blast 1 | . . . 1 Melee Attacks . | . . . . Impact . | . . . . Slashing . | . . . . Piercing . | . . . . Sneak Attacks . | . . . . Combat Hostiles . | . . . . Follow-up Attacks . | . . . . Damage Inflicted 1729 | 103 815 286 525 Guns 788 | 103 467 62 156 Cannons 248 | . 18 . 230 Explosions 658 | . 319 200 139 Melee . | . . . . Ramming 35 | . 11 24 . Kinetic 560 | 103 196 . 261 Thermal 476 | . 289 62 125 Explosive 658 | . 319 200 139 Electromagnetic . | . . . . Impact . | . . . . Slashing . | . . . . Piercing . | . . . . Highest Corruption . | . . . . Average Corruption . | . . . . Corruption Purged . | . . . . Corruption Blocked . | . . . . Overload Shots . | . . . . Overflow Damage 24 | . 16 . 8 Projectiles . | . . . . Explosions 24 | . 16 . 8 Melee . | . . . . Knockbacks . | . . . . Impact . | . . . . Kinetic . | . . . . Secondary . | . . . . Self-Inflicted Damage 55 | . 18 13 24 Shots 3 | . 1 1 1 Rammed 2 | . 1 1 . Targets Rammed 4 | . 2 2 . Kicked . | . . . . Crushed 2 | . 1 1 . Highest Temperature 301 | . 301 40 45 Average Temperature 74 | . 128 14 19 Received Heat Transfer 237 | . 141 33 63 Effects 1 | . 1 . . Energy Bleed 1 | . 1 . . Siege Activations . | . . . . Martial Activations . | . . . . Shielding Activations . | . . . . Robots Disrupted . | . . . . Combat Hostiles . | . . . . Robots Corrupted . | . . . . Combat Hostiles . | . . . . Parts Fried . | . . . . Impact Corruptions . | . . . . Robots Melted . | . . . . Combat Hostiles . | . . . . Parts Melted 4 | . 3 . 1 Heat Transferred 1406 | . 851 185 370 Parts Sabotaged . | . . . . Parts Stolen . | . . . . Parts Stripped . | . . . . Power Chain Reactions . | . . . . Alert | -11 -10 -10 -9 ------- Run | Yrd Mat Min Mat Maximum Alert Level . | . . . . Low Security (%) 100 | 100 100 100 100 Level 1 . | . . . . Level 2 . | . . . . Level 3 . | . . . . Level 4 . | . . . . Level 5 . | . . . . High Security . | . . . . Max Security . | . . . . Peak Influence 190 | 15 190 89 94 Initial 57 | . . 57 . Average 38 | 1 58 18 47 Influence Increases 766 | 25 454 109 178 Destroy 0b10 Robot/C 400 | . 260 40 100 Destroy 0b10 Robot/NC 95 | 25 30 20 20 Destroy Leader 98 | . 54 10 34 Successful Hack 20 | . 20 . . Select Force Hacks 30 | . 30 . . Disable Machine 30 | . . 15 15 Destroy Structure 63 | . 30 24 9 Lose Combat Pursuer 30 | . 30 . . Influence Decreases 750 | 25 306 257 162 Entered New Map 91 | . . 91 . Time Decay 629 | 25 296 166 142 Lost Part 30 | . 10 . 20 Squads Dispatched 2 | . 2 . . Investigation 2 | . 2 . . Extermination . | . . . . Reinforcement . | . . . . Assault . | . . . . Garrison . | . . . . Intercept . | . . . . Searches Triggered . | . . . . Construction Impeded . | . . . . Haulers Reinforced . | . . . . Active Scanning Responses . | . . . . Cargo Convoy Interrupts . | . . . . Stealth | -11 -10 -10 -9 --------- Run | Yrd Mat Min Mat Distress Signals . | . . . . Communications Jammed . | . . . . Distress Signals . | . . . . Times Spotted 31 | . 20 2 9 Peak Tracking Total 6 | . 6 2 3 Tactical Retreats 1 | . 1 . . Traps | -11 -10 -10 -9 ------- Run | Yrd Mat Min Mat Traps Triggered 2 | . 2 . . Indirectly . | . . . . Trap Hack Attempts . | . . . . Triggered . | . . . . Disarmed . | . . . . Reprogrammed . | . . . . Reused . | . . . . Traps Extracted . | . . . . Installed . | . . . . Triggered . | . . . . Machines | -11 -10 -10 -9 ---------- Run | Yrd Mat Min Mat Machines Disabled 2 | . . 1 1 Max in Single Turn 1 | . . 1 1 Machines Repaired . | . . . . Machines Dismantled . | . . . . Machines Sabotaged . | . . . . Overloaded Fab Kills . | . . . . Hacking | -11 -10 -10 -9 --------- Run | Yrd Mat Min Mat Machines Accessed 7 | . 6 1 . Terminals 4 | . 4 . . Fabricators . | . . . . Repair Stations . | . . . . Recycling Units 2 | . 2 . . Scanalyzers . | . . . . Garrison Access . | . . . . Total Hacks 23 | . 22 1 . Successful 15 | . 14 1 . Failed 8 | . 8 . . Catastrophic . | . . . . Database Lockouts . | . . . . Manual 14 | . 14 . . Terminals 16 | . 16 . . Fabricators . | . . . . Repair Stations . | . . . . Recycling Units 6 | . 6 . . Scanalyzers . | . . . . Garrison Access . | . . . . Terminal Hacks 5 | . 4 1 . Open Door 1 | . . 1 . Hauler Manifests 1 | . 1 . . Registered Components 1 | . 1 . . Zone Layout 2 | . 2 . . Fabricator Hacks . | . . . . Repair Station Hacks . | . . . . Recycling Unit Hacks 3 | . 3 . . Report Inventory 2 | . 2 . . Retrieve Components 1 | . 1 . . Scanalyzer . | . . . . Garrison Access Hacks . | . . . . Unauthorized Hacks 7 | . 7 . . Terminals 6 | . 6 . . Track 1 | . 1 . . Botnet 4 | . 4 . . Operators 1 | . 1 . . Fabricators . | . . . . Repair Stations . | . . . . Recycling Units 1 | . 1 . . Tunnel 1 | . 1 . . Scanalyzers . | . . . . Garrison Access . | . . . . Data Cores Recovered . | . . . . Used . | . . . . Hacking Detections 5 | . 5 . . Full Trace Events . | . . . . Feedback Events . | . . . . Feedback Blocked . | . . . . Robot Schematics Acquired . | . . . . Robots Built . | . . . . Authchips . | . . . . Time . | . . . . Total Robot Build Rating . | . . . . Part Schematics Acquired . | . . . . Parts Built . | . . . . Authchips . | . . . . Time . | . . . . Total Part Build Rating . | . . . . Parts Repaired . | . . . . Time . | . . . . Parts Recycled . | . . . . Recycled Matter . | . . . . Retrieved Matter . | . . . . Retrieved Components 9 | . 9 . . Parts Scanalyzed . | . . . . Part Schematics Acquired . | . . . . Parts Damaged . | . . . . Bothacking | -11 -10 -10 -9 ------------ Run | Yrd Mat Min Mat Used RIF Installer . | . . . . Robots Hacked . | . . . . Non-combat . | . . . . Combat . | . . . . Robot Hacks Applied . | . . . . Relay Couplers Released . | . . . . Fabnet Peak Effective % . | . . . . Robots Rewired . | . . . . Allies Hacked . | . . . . Hacks Repelled . | . . . . Allies | -11 -10 -10 -9 -------- Run | Yrd Mat Min Mat Total Allies . | . . . . Largest Group . | . . . . Highest-Rated Group . | . . . . Highest-Rated Ally . | . . . . Total Orders 1 | . . . 1 RETURN 1 | . . . 1 Ally Attacks . | . . . . Total Damage . | . . . . Kills . | . . . . Allies Corrupted . | . . . . Allies Melted . | . . . . Intel | -11 -10 -10 -9 ------- Run | Yrd Mat Min Mat Active Infowar (turns) 2266 | 89 993 852 332 Terrain 50 | 50 . . . Structural 331 | . . . 331 Seismic 2215 | 39 993 852 331 Robot Analysis Total . | . . . . Derelict Logs Recovered 1 | . . 1 . Drone Launches 1 | . . . 1 Drone Recoveries 1 | . . . 1 Exploration | -11 -10 -10 -9 ------------- Run | Yrd Mat Min Mat Turns Passed 2347 | 165 993 852 337 Spaces Moved 1013 | 103 427 337 146 Core 5 | 5 . . . Treads 891 | . 408 337 146 Legs 117 | 98 19 . . Wheels . | . . . . Hover . | . . . . Flight . | . . . . Fastest Speed 50 | 50 120 240 160 Average Speed 197 | 116 196 240 162 Slowest Speed 240 | 120 240 240 240 Overloaded Moves . | . . . . Propulsion Burnouts . | . . . . Robots Hopped . | . . . . Potential Cave-ins . | . . . . Cave-ins Triggered . | . . . . Exploration Rate (%) 36 | 5 59 71 10 Regions Visited 3 Branch Regions 1 Pre-discovered Areas 1 | . 1 . . Known Exits Taken . | . . . . Unknown Exits Taken 3 | 1 1 1 . Scrap Searched 1 | . . 1 . Spaces Dug 4 | . . . 4 Terrain Destroyed 98 | . 48 41 9 Melee . | . . . . Projectile . | . . . . AOE 98 | . 48 41 9 Terrain Rammed . | . . . . Walls Destroyed . | . . . . Machines Disabled . | . . . . Actions | -11 -10 -10 -9 --------- Run | Yrd Mat Min Mat Total 1222 | 128 516 366 212 Wait 31 | . 16 . 15 Move 1010 | 102 426 336 146 Hop . | . . . . Pick Up 39 | 9 17 5 8 Fast Attach 12 | 7 2 . 3 Attach 8 | . 3 . 5 Detach 5 | . 1 . 4 Swap 9 | 1 2 3 3 Drop 23 | 1 8 6 8 Fire 81 | 8 39 14 20 Melee . | . . . . Ram . | . . . . Kick . | . . . . Crush 4 | . 2 2 . Escape Stasis . | . . . . Rewire . | . . . . Trap . | . . . . Miscellaneous . | . . . . Route ------- -11/Scrapyard -10/Materials (discovered 2 exits: [*Mat] / *Min) -10/Mines (discovered 2 exits: [*Mat] / [*Sub]) -9/Materials (discovered 1 exit: Min) History --------- Turn | Location | Event 4 | -11/Scrapyard | Discovered new exit (range 14) 166 | -11/Scrapyard | Entered Materials 311 | -10/Materials | Build established: Mutant 431 | -10/Materials | Discovered new exit (range 15) 1079 | -10/Materials | Discovered new exit (range 15) 1159 | -10/Materials | Entered Mines 1417 | -10/Mines | A weapon hastily lodged in a ceiling crevice suddenly fell to the ground 1634 | -10/Mines | Discovered new exit (range 7) 1881 | -10/Mines | Received a Rocket Launcher from a helpful Derelict 1911 | -10/Mines | Discovered new exit (range 14) 1957 | -10/Mines | Found the Drone Emporium 1967 | -10/Mines | Found Prototype Device 2011 | -10/Mines | Entered Materials 2011 | -9/Materials | Evolved 2 slots: Propulsion x1, Utility x1 2012 | -9/Materials | Identified exit to Mines 2013 | -9/Materials | Identified Decoy Drone Bay 2348 | -9/Materials | Self-destructed Last Messages --------------- 02184_ K-01 Serf collects debris. 02186_ Acquired Prototype Energy Cannon. 02186_ Identified Adv. Beam Cannon. 02187_ Dropped Lgt. Cannon. 02188_ K-01 Serf collects debris. 02193_ Acquired 16 matter. 02194_ K-01 Serf collects debris. 02194_ Acquired 2 matter. 02196_ Acquired 6 matter. 02201_ Acquired Ion Cannon. 02209_ K-01 Serf collects debris. 02214_ Dropped Lgt. Treads. 02225_ Dropped Grenade Launcher. 02225_ Acquired Mni. Grenade Launcher. 02227_ Dropped Mining Laser. 02232_ Acquired Lgt. Treads. 02238_ Dropped Transport Network Coupler. 02238_ Acquired Lgt. Treads. 02341_ O-16 Technician destroyed. 02342_ K-01 Serf collects debris. Map ----- +----------------------------------------------------+ | ?????????????????????????????????????????????????? | | ?????????????????????????????????????????????????? | | ?????????????????????????????????????????????????? | | ?????????????????????????????????????????????????? | | ?????????????????????????????????????????????????? | | ?????????????????????????????????????????????????? | | ?????????????????????????????????????????????????? | | ?????????????????????????????????????????????????? | | ?????????????????????????????????????????????????? | | ?????????????????????????????????????????????????? | | ?????????????????????????????????????????????????? | | ?????????????????????????????????????????????????? | | ?????????????????????????????????????????????????? | | ###########???????????####???????????????????????? | | ###########????????######## ?????????????????????? | | ##????????#### ### ?????????????????????? | | [ ##????????## # ?????????????????????? | | ##????????## # ?????????????????????? | | ############ % # ?????????????????????? | | ############ """ ##????????? # ?????????? | | ####==!!] ## """ ##????????? # ?????????? | | ####==!! ## """ ##???????? # #? | | #### ## ######### ############ | | ####+######## [ ####+########## # # | | % * []^k !!^ t # """ """ # | | *!= !*=[[% @ !%%^ # """ """ # | | !%* =*!]" | ! ^% [ # """ """ # | | ### ###+########## = T ]!=##### # # | | ### # ####### "" ] !=########### # | | ?## # """ # #^^ ^^ !==##???###### # | | ?## # """ # # ^ ########### # | | ?###### """ # # ############+######## | | ?###### # + ###### | | ?????## # """ # ##???? | | ?????######### """ # ##???? | | ?????######### """ ###########################???? | | ????????????## ###########################???? | | ????????????######???????????????????????????????? | | | | | | | | | | | | | | | | | | | | | | | | | +----------------------------------------------------+ Best States ------------- Heat Dissipation 28 Energy Generation 10 Energy Capacity 250 Matter Stores 300 Matter Capacity 300 Sight Range 16 Terrain Scan Range 16 Terrain Scan Density 10 Evasion (%) 55 Recoil Reduction 3 Item Schematics ----------------- None Robot Schematics ------------------ None Fabricated ------------ Nothing Repaired ---------- Nothing Alien Tech Used ----------------- None Achievements -------------- None Challenges ------------ None Game ------ Seed SwarmBiocellSource Manual? 0 Play Time 00:17:02 Cumulative 244.3 hours Start 2025.09.29 @ 12:01:09 End 2025.10.15 @ 13:06:22 Sessions 7 Manual Loads 0 Difficulty Rogue Special Mode None Game No. 255 Rogue 255 Adventurer 0 Explorer 0 Win Type - Total 3 Types 3/0/0/0/0/0/0/0/0/0 Lore% 74 Gallery% 71 Achievement% 66 Wizard Run 0 Options --------- Layout 0 ASCII 1 Keyboard 1 Movement Vi Keybinds 0 Fullscreen 2 Font 18/TerminusBold Map View 76x50 Zoom Use 0% Tactical HUD 1 Map Filters NONE Filters NONE Steam X RUN: f6291ced-a0a7-429e-a5aa-6c72771e3844